bitfinex-derivatives/quotes_SOLF0:USTF0_20240815
["timestamp","ask_amount","ask_price","bid_price","bid_amount"]
[1723729505536,5.1245086,144.45,144.44,3.4613]
[1723729505742,0.05200037,144.45,144.44,3.4613]
[1723729506137,0.05200037,144.45,144.43,3.50854167]
[1723729506333,0.05200037,144.45,144.43,0.04694167]
[1723729506641,0.05200037,144.45,144.44,3.4614]
[1723729507446,0.05200037,144.45,144.43,0.04694167]
[1723729508343,0.05200037,144.45,144.43,33.26694167]
[1723729508534,0.05200037,144.45,144.44,3.4614]
[1723729509443,0.05200037,144.45,144.43,0.04694167]
[1723729510549,0.05200037,144.45,144.44,36.6814]
[1723729511048,0.05200037,144.45,144.43,0.04694167]
[1723729514850,33.22,144.44,144.43,0.04694167]
[1723729515051,33.22,144.42,144.36,3.4632]
[1723729515244,39.30693952,144.44,144.34,37.90675783]
[1723729515443,39.30693952,144.44,144.4,3.4623]
[1723729515444,2.6907,144.44,144.4,3.4623]
[1723729515643,5.9,144.45,144.38,33.22]
[1723729516046,5.9,144.45,144.39,3.4625]
[1723729516549,5.9,144.45,144.4,3.4622]
[1723729516746,5.9,144.45,144.38,33.22]
[1723729516950,0.05141509,144.43,144.38,33.22]
[1723729517149,0.05141509,144.43,144.39,3.4625]
[1723729517353,0.05141509,144.43,144.36,33.22]
[1723729517753,36.64648382,144.44,144.34,37.90675783]
[1723729518050,0.04705423,144.41,144.34,1.2694]
[1723729518853,0.04705423,144.41,144.36,3.4632]
[1723729519053,0.04705423,144.41,144.34,1.2694]
[1723729519254,0.04705423,144.41,144.36,33.22]
[1723729519451,0.04705423,144.41,144.38,3.4627]
[1723729520143,0.04705423,144.41,144.36,33.22]
[1723729520144,0.04705423,144.41,144.37,3.463]
[1723729520350,0.04705423,144.41,144.36,33.22]
[1723729520757,0.04705423,144.41,144.38,3.4629]
[1723729521056,0.04705423,144.41,144.35,33.22]
[1723729521757,0.04705423,144.41,144.36,3.4633]
[1723729522344,0.04705423,144.41,144.35,3.4635]
[1723729522553,5.0742562,144.4,144.31,40.4764]
[1723729522750,33.22,144.4,144.3,1.2479]
[1723729522957,8.433,144.39,144.31,3.4644]
[1723729523146,33.22,144.38,144.31,3.4644]
[1723729523350,3.4639,144.34,144.31,3.4644]
[1723729523550,33.22,144.38,144.3,3.4647]
[1723729523754,0.04671231,144.36,144.3,3.4647]
[1723729523956,0.04671231,144.36,144.29,3.4649]
[1723729523957,36.77643957,144.36,144.29,3.4649]
[1723729524150,33.26671231,144.36,144.25,37.1296]
[1723729524351,1.3637,144.35,144.25,37.1296]
[1723729524751,5.9,144.34,144.25,37.1296]
[1723729524948,35.753,144.39,144.29,33.22]
[1723729525149,5.9,144.37,144.31,33.22]
[1723729525354,3.4637,144.35,144.31,33.22]
[1723729525558,5.9,144.37,144.33,3.464]
[1723729525753,5.9,144.37,144.31,33.22]
[1723729525955,0.04542947,144.34,144.31,33.22]
[1723729526552,3.50942947,144.34,144.31,36.6844]
[1723729526953,0.04542947,144.34,144.29,33.22]
[1723729527161,3.4643,144.32,144.27,33.22]
[1723729527458,4.69607124,144.36,144.27,33.22]
[1723729527659,0.04511171,144.33,144.27,33.22]
[1723729528162,0.04511171,144.33,144.3,3.4647]
[1723729528356,0.04511171,144.33,144.27,33.22]
[1723729528760,3.50941171,144.33,144.27,33.22]
[1723729529062,0.04511171,144.33,144.27,33.22]
[1723729529675,0.04511171,144.33,144.25,34.5329]
[1723729529977,0.04511171,144.33,144.27,33.22]
[1723729530469,0.04511171,144.33,144.29,33.22]
[1723729530866,3.50931171,144.33,144.3,3.4647]
[1723729531069,0.04511171,144.33,144.3,3.4647]
[1723729531368,3.50931171,144.33,144.3,3.4647]
[1723729531975,3.4644,144.32,144.3,3.4647]
[1723729532172,3.4644,144.32,144.29,36.6849]
[1723729532477,3.4647,144.31,144.27,33.22]
[1723729532775,0.04511171,144.33,144.28,3.4652]
[1723729532975,3.4648,144.31,144.28,3.4652]
[1723729533277,5.9,144.35,144.25,34.5329]
[1723729533673,0.05025065,144.32,144.25,34.5329]
[1723729534170,3.4647,144.31,144.25,34.5329]
[1723729534568,3.4647,144.31,144.28,3.4651]
[1723729534765,3.4649,144.3,144.25,34.5329]
[1723729535374,3.4646,144.31,144.28,3.4651]
[1723729535572,4.69607124,144.36,144.29,33.22]
[1723729535768,3.4639,144.34,144.31,3.4644]
[1723729536273,3.4641,144.33,144.31,3.4644]
[1723729536570,5.9,144.35,144.27,33.22]
[1723729536571,0.04568867,144.34,144.27,33.22]
[1723729536878,3.4643,144.33,144.3,3.4647]
[1723729537574,3.4643,144.33,144.31,3.4645]
[1723729537766,3.51236972,144.33,144.31,3.4645]
[1723729538170,3.51236972,144.33,144.3,3.4647]
[1723729538171,3.4643,144.32,144.3,3.4647]
[1723729539077,3.4643,144.32,144.29,3.4649]
[1723729539866,0.04806972,144.33,144.29,3.4649]
[1723729540072,3.465,144.3,144.24,33.22]
[1723729540283,33.22,144.31,144.22,33.22]
[1723729540471,3.4654,144.28,144.25,3.4659]
[1723729540980,9.3649,144.3,144.27,3.4653]
[1723729541375,0.04586318,144.28,144.27,3.4653]
[1723729542077,0.04586318,144.28,144.22,33.22]
[1723729542274,3.51126318,144.28,144.22,33.22]
[1723729542874,3.39630528,144.28,144.22,33.22]
[1723729543081,5.9,144.3,144.24,3.4662]
[1723729543283,0.04940185,144.26,144.24,3.4662]
[1723729543775,0.04940185,144.26,144.24,3.466]
[1723729543966,0.04940185,144.26,144.22,33.22]
[1723729544370,0.04940185,144.26,144.25,3.466]
[1723729544970,0.04940185,144.26,144.19,4.69162704]
[1723729545277,3.51530185,144.26,144.2,33.22]
[1723729545678,3.4661,144.25,144.2,33.22]
[1723729545876,0.04940185,144.26,144.19,1.2593]
[1723729545877,33.26940185,144.26,144.19,1.2593]
[1723729546080,33.26940185,144.26,144.21,3.4667]
[1723729546279,3.4664,144.24,144.21,3.4667]
[1723729546482,33.26940185,144.26,144.18,33.22]
[1723729546677,33.26940185,144.26,144.18,3.4675]
[1723729546975,33.26940185,144.26,144.16,33.22]
[1723729546976,7.2472,144.25,144.16,33.22]
[1723729547178,33.22,144.24,144.15,1.3418]
[1723729547780,7.2472,144.25,144.16,33.22]
[1723729547980,5.9,144.25,144.18,33.22]
[1723729548579,0.0440241,144.21,144.16,33.22]
[1723729549279,0.0440241,144.21,144.15,1.3418]
[1723729549682,0.0440241,144.21,144.18,3.4676]
[1723729550078,3.5111241,144.21,144.18,3.4676]
[1723729550285,0.0440241,144.21,144.13,2.502]
[1723729550479,0.0440241,144.21,144.12,33.22]
[1723729550480,1.2944241,144.21,144.12,33.22]
[1723729550680,3.4678,144.18,144.12,33.22]
[1723729551381,9.44774145,144.2,144.15,3.4682]
[1723729551686,9.44774145,144.2,144.1,39.12]
[1723729551687,33.22,144.18,144.1,39.12]
[1723729551886,0.04917603,144.16,144.13,3.4687]
[1723729552084,3.51747603,144.16,144.13,3.4687]
[1723729552284,0.04917603,144.16,144.07,3.8825]
[1723729552483,41.65,144.15,144.07,1.2546]
[1723729552679,47.55,144.15,144.07,1.2546]
[1723729552884,47.55,144.15,144.09,3.4697]
[1723729553080,3.4691,144.13,144.09,3.4697]
[1723729553288,41.65,144.17,144.07,1.2546]
[1723729553485,0.04394893,144.12,144.07,1.2546]
[1723729553785,0.04394893,144.12,144.08,1.2632]
[1723729553982,0.04394893,144.12,144.11,3.4694]
[1723729555984,47.55,144.19,144.14,3.4686]
[1723729556180,5.9,144.19,144.1,41.65]
[1723729556382,3.4673,144.2,144.16,3.468]
[1723729556583,9.3673,144.2,144.11,1.3297]
[1723729556890,3.4674,144.19,144.16,3.468]
[1723729557084,5.9,144.2,144.16,3.468]
[1723729557391,5.9,144.2,144.12,41.65]
[1723729557592,0.04430215,144.17,144.16,3.4681]
[1723729557794,0.04430215,144.17,144.14,0.050714]
[1723729557988,0.04430215,144.17,144.16,3.4682]
[1723729558690,7.1482,144.23,144.19,3.4674]
[1723729558886,41.65,144.22,144.14,0.050714]
[1723729559284,41.65,144.22,144.16,3.468]
[1723729559683,3.4674,144.2,144.12,9.3902192]
[1723729559885,3.4674,144.2,144.17,3.4677]
[1723729560191,3.467,144.21,144.12,9.3902192]
[1723729560393,0.04486398,144.2,144.18,0.05313061]
[1723729560990,0.04486398,144.2,144.14,41.65]
[1723729561888,0.04486398,144.2,144.18,0.04991937]
[1723729562996,3.468,144.17,144.11,1.3297]
[1723729563189,5.9,144.19,144.15,3.4684]
[1723729563593,3.4679,144.18,144.15,3.4684]
[1723729563790,9.42535201,144.19,144.14,3.4686]
[1723729564100,3.4681,144.17,144.14,3.4686]
[1723729564284,3.4681,144.17,144.15,3.4684]
[1723729564688,3.4681,144.17,144.15,0.04524604]
[1723729565089,0.04865271,144.18,144.15,0.04524604]
[1723729565490,44.2546,144.24,144.15,0.04524604]
[1723729565491,41.65,144.24,144.15,0.04524604]
[1723729565991,41.65,144.22,144.16,3.468]
[1723729566195,3.4675,144.19,144.15,0.04524604]
[1723729566395,41.65,144.22,144.14,1.3186]
[1723729566594,41.65,144.24,144.14,1.3186]
[1723729567297,0.05139091,144.19,144.17,0.04533796]
[1723729568197,3.4677,144.18,144.17,0.04533796]
[1723729568394,3.43886538,144.2,144.17,0.04533796]
[1723729568595,41.65,144.22,144.17,0.04533796]
[1723729568797,3.4675,144.19,144.17,0.04533796]
[1723729568997,3.53908038,144.2,144.17,0.04533796]
[1723729569196,3.4676,144.19,144.17,0.04533796]
[1723729569504,0.05206421,144.19,144.17,0.04533796]
[1723729569699,3.51966421,144.19,144.17,0.04533796]
[1723729569903,3.45972077,144.19,144.17,0.04533796]
[1723729570200,3.4677,144.18,144.17,0.04533796]
[1723729570597,0.05206421,144.19,144.17,0.04533796]
[1723729571496,0.05206421,144.19,144.17,3.51313796]
[1723729571797,0.05206421,144.19,144.17,0.04533796]
[1723729571998,0.05206421,144.19,144.17,3.51313796]
[1723729572199,0.05206421,144.19,144.17,0.04533796]
[1723729572498,0.05206421,144.19,144.18,3.4677]
[1723729573203,0.05206421,144.19,144.17,0.04533796]
[1723729573398,41.70206421,144.19,144.17,0.04533796]
[1723729573598,3.4677,144.18,144.17,0.04533796]
[1723729573802,41.70206421,144.19,144.17,0.04533796]
[1723729574004,0.05206421,144.19,144.17,0.04533796]
[1723729574198,3.4677,144.18,144.17,0.04533796]
[1723729574398,0.05206421,144.19,144.17,0.04533796]
[1723729574702,0.05206421,144.19,144.18,3.4677]
[1723729574899,0.05206421,144.19,144.17,0.04533796]
[1723729575103,41.70206421,144.19,144.17,0.04533796]
[1723729575301,3.4677,144.18,144.17,0.04533796]
[1723729576304,47.60206421,144.19,144.09,1.3494]
[1723729576494,41.65,144.14,144.06,1.2826]
[1723729576697,3.46492787,144.13,144.06,1.2826]
[1723729576907,41.65,144.12,144.02,50.0892]
[1723729577112,41.65,144.12,144.02,51.3718]
[1723729577402,1.2669,144.13,144.04,41.65]
[1723729577609,9.43830521,144.14,144.04,41.65]
[1723729577807,9.43830521,144.14,144.08,3.47]
[1723729578106,0.05247275,144.08,144.06,0.04595084]
[1723729578404,0.05247275,144.08,144.07,3.4702]
[1723729578705,12.11130521,144.14,144.04,41.65]
[1723729578706,5.9,144.14,144.04,41.65]
[1723729578903,5.9,144.14,144.1,3.4694]
[1723729579110,0.05254106,144.09,144.06,41.69629883]
[1723729579802,9.3688,144.14,144.07,3.42796088]
[1723729580009,5.9,144.14,144.07,3.42796088]
[1723729580306,0.04530422,144.09,144.08,46.4393]
[1723729580505,41.65,144.17,144.08,46.41171186]
[1723729580902,0.05178637,144.1,144.08,1.3192]
[1723729581104,41.65,144.13,144.04,3.54520092]
[1723729581311,41.65,144.11,143.93,3.43453264]
[1723729581604,9.36017246,144.1,144.08,0.04660021]
[1723729581805,9.31163576,144.1,143.99,42.9102]
[1723729582204,41.65,144.06,143.96,5.9]
[1723729582406,41.65,144.06,143.91,6.9482]
[1723729582407,5.88,144.05,143.97,3.38492273]
[1723729582612,5.88,144.05,143.96,41.65]
[1723729582810,3.4711,144.04,144.0,0.04789199]
[1723729583303,3.4716,144.02,144.0,0.04789199]
[1723729583501,3.5219936,144.02,144.0,0.04789199]
[1723729583706,0.0503936,144.02,144.0,0.04789199]
[1723729584610,3.4718,144.01,144.0,0.04789199]
[1723729585112,48.59169809,144.01,144.0,0.04789199]
[1723729585311,48.59169809,144.01,143.93,1.2602]
[1723729585312,50.99989809,144.01,143.89,2.6014]
[1723729585507,41.65,143.98,143.89,5.99353349]
[1723729585700,41.65,143.98,143.89,2.6014]
[1723729585904,41.65,143.98,143.89,6.06227184]
[1723729586104,41.65,143.98,143.92,3.4738]
[1723729586300,41.65,143.98,143.89,2.6014]
[1723729586301,41.65,143.98,143.89,3.47406405]
[1723729586502,42.9382,144.03,143.91,41.65]
[1723729586805,0.04990224,143.96,143.95,3.4731]
[1723729587209,5.9,144.02,143.94,3.4734]
[1723729587605,0.04559135,143.97,143.94,3.52177628]
[1723729587811,0.04559135,143.97,143.94,0.04837628]
[1723729588614,5.94559135,143.97,143.94,0.04837628]
[1723729589309,3.4731,143.96,143.94,0.04837628]
[1723729589509,5.94559135,143.97,143.94,0.04837628]
[1723729589717,9.41849135,143.97,143.94,0.04837628]
[1723729589912,3.51849135,143.97,143.94,0.04837628]
[1723729590216,0.04559135,143.97,143.94,0.04837628]
[1723729590511,0.04559135,143.97,143.95,3.4731]
[1723729590710,0.04559135,143.97,143.94,0.04837628]
[1723729591307,3.4732,143.95,143.94,0.04837628]
[1723729592515,5.94559135,143.97,143.94,0.04837628]
[1723729592714,0.04559135,143.97,143.94,0.04837628]
[1723729592919,0.04559135,143.97,143.96,3.473]
[1723729593517,42.9382,144.05,143.96,3.55881896]
[1723729593717,41.65,144.03,143.94,0.04837628]
[1723729594113,3.4723,143.99,143.94,0.04837628]
[1723729594319,3.4723,143.99,143.96,3.4729]
[1723729594621,3.4721,144.0,143.93,1.2925]
[1723729594821,2.6319,144.02,143.95,3.4731]
[1723729595024,2.6319,144.02,143.93,1.2925]
[1723729595218,0.04680529,143.98,143.93,1.2925]
[1723729595413,0.04680529,143.98,143.95,0.04723142]
[1723729596112,3.473,143.96,143.95,0.04723142]
[1723729596312,0.04680529,143.98,143.95,0.04723142]
[1723729598220,3.4729,143.97,143.95,0.04723142]
[1723729598519,0.04680529,143.98,143.95,0.04723142]
[1723729598724,41.65,143.96,143.95,0.04723142]
[1723729598917,0.04680529,143.98,143.95,0.04723142]
[1723729599117,3.5486933,143.97,143.95,0.04723142]
[1723729599318,3.473,143.96,143.95,0.04723142]
[1723729599520,1.29500529,143.98,143.95,0.04723142]
[1723729599718,0.04680529,143.98,143.95,0.04723142]
[1723729599913,0.04680529,143.98,143.95,3.52033142]
[1723729600119,0.04680529,143.98,143.95,0.04723142]
[1723729600519,0.04680529,143.98,143.97,3.4727]
[1723729601726,9.38745918,144.06,143.97,41.65]
[1723729602031,5.9,144.06,143.97,41.65]
[1723729602223,2.5643,144.09,144.01,41.65]
[1723729602430,5.9,144.11,144.01,41.65]
[1723729602631,5.9,144.11,144.05,3.4707]
[1723729602822,5.9,144.11,144.01,41.65]
[1723729602823,9.37634266,144.11,144.01,41.65]
[1723729603134,5.9,144.11,144.02,3.55936913]
[1723729603430,0.04759707,144.07,144.06,3.4704]
[1723729603925,0.04759707,144.07,144.05,0.04592847]
[1723729604126,3.4701,144.08,144.05,0.04592847]
[1723729604632,42.934,144.12,144.05,3.51672847]
[1723729604828,0.0459682,144.07,144.05,0.04592847]
[1723729605237,3.4704,144.07,144.05,0.04592847]
[1723729605623,0.04701784,144.07,144.05,0.04592847]
[1723729606136,0.04701784,144.07,144.05,3.51662847]
[1723729606430,0.04701784,144.07,144.05,0.04592847]
[1723729606628,0.04701784,144.07,144.06,3.4706]
[1723729607131,2.6386,144.14,144.05,9.48532451]
[1723729607336,3.469,144.13,144.09,3.4697]
[1723729608438,0.05266879,144.12,144.1,0.04591603]
[1723729608831,3.4694,144.11,144.1,0.04591603]
[1723729609032,0.05266879,144.12,144.1,0.04591603]
[1723729609636,3.52196879,144.12,144.1,0.04591603]
[1723729611741,0.05266879,144.12,144.11,3.4694]
[1723729612639,69.36246877,144.19,144.14,3.4685]
[1723729612938,69.36246877,144.19,144.1,0.04591603]
[1723729612939,65.82891336,144.19,144.11,41.65]
[1723729613336,69.29651336,144.19,144.11,41.65]
[1723729613741,69.29651336,144.19,144.11,45.04450496]
[1723729614143,65.82891336,144.19,144.11,41.65]
[1723729614339,226.0,144.28,144.19,3.4673]
[1723729614340,2.6755,144.26,144.19,3.4673]
[1723729614543,2.6755,144.26,144.16,5.88]
[1723729614741,41.65,144.25,144.17,3.4678]
[1723729615041,41.65,144.25,144.14,0.04911907]
[1723729615042,41.65,144.23,144.14,0.04911907]
[1723729615241,3.4678,144.18,144.14,3.51761907]
[1723729615438,41.65,144.2,144.14,0.04911907]
[1723729615638,3.9776,144.19,144.14,0.04911907]
[1723729615838,3.9776,144.19,144.13,3.4687]
[1723729616033,3.9776,144.19,144.1,9.37059876]
[1723729616034,41.65,144.18,144.1,5.88]
[1723729616236,41.65,144.18,144.08,9.26629932]
[1723729616841,3.9776,144.19,144.15,0.04536686]
[1723729617545,3.9776,144.19,144.15,3.51376686]
[1723729617732,3.9776,144.19,144.15,3.4684]
[1723729617937,3.468,144.17,144.14,3.4686]
[1723729618542,3.4687,144.14,144.11,3.4692]
[1723729618743,3.4687,144.14,144.09,1.2695]
[1723729618943,41.70165352,144.18,144.09,1.2695]
[1723729619143,3.4685,144.15,144.14,0.0469396]
[1723729619742,41.65,144.15,144.06,5.88]
[1723729619940,41.65,144.15,144.06,9.36712967]
[1723729620337,3.9776,144.19,144.08,41.65]
[1723729620538,3.9776,144.19,144.1,41.65]
[1723729621044,41.65,144.22,144.13,41.65]
[1723729621243,42.9593,144.22,144.13,41.65]
[1723729621545,0.04497411,144.16,144.13,41.69778651]
[1723729621742,0.04497411,144.16,144.13,45.10165801]
[1723729622040,0.04497411,144.16,144.15,45.1184]
[1723729622239,1.3483,144.24,144.15,41.65]
[1723729622438,3.4671,144.21,144.15,41.65]
[1723729622642,4.80386095,144.24,144.15,41.65]
[1723729622945,46.45386095,144.24,144.15,41.65]
[1723729623541,3.4671,144.21,144.18,3.4677]
[1723729623946,3.52010871,144.21,144.18,0.05024568]
[1723729624248,0.05300871,144.21,144.18,0.05024568]
[1723729624651,0.05300871,144.21,144.19,3.4674]
[1723729625039,0.05300871,144.21,144.18,0.05024568]
[1723729625649,0.05300871,144.21,144.19,41.65]
[1723729625946,7.1374,144.28,144.19,41.65]
[1723729626145,1.2574,144.28,144.21,41.65]
[1723729626347,6.06805328,144.31,144.21,41.65]
[1723729626536,6.06805328,144.31,144.23,41.65]
[1723729626537,3.4651,144.29,144.23,41.65]
[1723729626740,6.06805328,144.31,144.23,41.65]
[1723729626940,3.4653,144.28,144.25,3.4659]
[1723729627243,6.06805328,144.31,144.23,41.65]
[1723729627447,0.05274595,144.28,144.26,0.04616259]
[1723729628243,3.4655,144.27,144.26,0.04616259]
[1723729629742,3.4655,144.27,144.18,3.53071054]
[1723729629743,41.65,144.27,144.16,41.65]
[1723729629945,41.65,144.27,144.19,3.4674]
[1723729630153,41.65,144.25,144.14,1.3057]
[1723729630446,41.65,144.25,144.17,3.4678]
[1723729630447,3.4673,144.2,144.17,3.4678]
[1723729630637,3.4673,144.2,144.14,1.3057]
[1723729630840,3.4675,144.19,144.16,3.468]
[1723729631037,45.10164644,144.23,144.12,41.65]
[1723729631248,45.10164644,144.23,144.12,45.09852686]
[1723729631448,0.05086496,144.18,144.16,3.51620441]
[1723729631645,0.05086496,144.18,144.16,0.04810441]
[1723729631851,0.05086496,144.18,144.16,41.69810441]
[1723729632053,0.05086496,144.18,144.17,3.4679]
[1723729632246,5.88,144.23,144.16,41.69810441]
[1723729632447,3.4668,144.22,144.18,3.4676]
[1723729632648,0.04426565,144.19,144.18,3.4676]
[1723729633057,1.234,144.24,144.14,41.65]
[1723729633347,1.234,144.24,144.17,0.04829239]
[1723729633548,3.4677,144.18,144.17,0.04829239]
[1723729633748,0.05225924,144.2,144.17,0.04829239]
[1723729635053,3.4677,144.18,144.17,0.04829239]
[1723729635449,0.05225924,144.2,144.17,0.04829239]
[1723729635650,3.4676,144.19,144.17,0.04829239]
[1723729636159,3.4677,144.18,144.17,0.04829239]
[1723729637049,3.51955924,144.2,144.17,3.51609239]
[1723729637560,0.05225924,144.2,144.17,3.51609239]
[1723729638056,3.4676,144.19,144.17,0.04829239]
[1723729638456,0.05225924,144.2,144.17,0.04829239]
[1723729638648,3.4677,144.18,144.17,0.04829239]
[1723729639053,0.05225924,144.2,144.17,0.04829239]
[1723729639346,3.4674,144.19,144.17,3.51609239]
[1723729639651,3.4674,144.19,144.17,0.04829239]
[1723729639856,3.4677,144.18,144.17,0.04829239]
[1723729640850,3.4693,144.12,144.07,41.65]
[1723729641054,45.16737532,144.16,144.09,3.4697]
[1723729641254,41.65,144.16,144.05,47.53]
[1723729641451,1.3436,144.15,144.08,3.4701]
[1723729641647,3.50905181,144.14,144.05,47.53]
[1723729641859,3.4693,144.12,144.05,47.53]
[1723729642046,0.04827753,144.11,144.08,0.04799522]
[1723729642244,0.04827753,144.11,144.08,3.46934481]
[1723729642451,0.04827753,144.11,144.1,3.4696]
[1723729642646,41.65,144.21,144.1,41.65]
[1723729642953,5.88,144.2,144.15,3.4684]
[1723729643364,3.4684,144.16,144.12,41.65]
[1723729643554,3.4684,144.16,144.13,3.4688]
[1723729643957,0.043802,144.16,144.13,0.04993867]
[1723729644157,0.043802,144.16,144.15,3.4684]
[1723729645960,1.3436,144.23,144.19,3.4673]
[1723729646158,1.3436,144.23,144.17,41.65]
[1723729646556,1.3436,144.23,144.17,45.1178]
[1723729646858,3.4671,144.21,144.17,41.65]
[1723729647253,0.04450981,144.2,144.18,3.51223789]
[1723729647557,0.04450981,144.2,144.18,0.04463789]
[1723729648065,0.04450981,144.2,144.19,3.4674]
[1723729648860,0.04450981,144.2,144.19,45.1174]
[1723729649760,3.4659,144.26,144.19,41.65]
[1723729649966,3.45158829,144.29,144.19,41.65]
[1723729650168,5.88,144.3,144.22,3.4666]
[1723729650369,3.4661,144.25,144.22,3.4666]
[1723729650564,9.38915522,144.3,144.23,3.4664]
[1723729650765,9.38915522,144.3,144.21,41.65]
[1723729651064,9.38915522,144.3,144.22,0.0487636]
[1723729651259,0.04896424,144.25,144.22,0.0487636]
[1723729651458,3.51506424,144.25,144.22,0.0487636]
[1723729651667,0.04896424,144.25,144.22,0.0487636]
[1723729652170,3.4663,144.24,144.22,0.0487636]
[1723729652355,0.04896424,144.25,144.22,0.0487636]
[1723729653463,3.4662,144.24,144.22,0.0487636]
[1723729653866,0.04896424,144.25,144.22,0.0487636]
[1723729654965,3.51506424,144.25,144.22,3.5154636]
[1723729655666,3.4663,144.24,144.22,0.0487636]
[1723729655870,0.04896424,144.25,144.22,0.0487636]
[1723729656270,3.4665,144.23,144.22,0.0487636]
[1723729656462,0.04896424,144.25,144.22,0.0487636]
[1723729658262,3.4677,144.18,144.15,3.4682]
[1723729658566,3.51268433,144.22,144.12,41.65]
[1723729658767,3.468,144.17,144.14,3.4685]
[1723729658967,2.4972,144.24,144.15,41.65]
[1723729659169,2.4972,144.24,144.17,41.65]
[1723729659476,3.4668,144.22,144.19,3.4673]
[1723729659766,3.4668,144.22,144.2,3.4672]
[1723729659971,3.4668,144.22,144.17,41.65]
[1723729660172,3.51170185,144.22,144.19,0.05277306]
[1723729660466,0.04490185,144.22,144.19,0.05277306]
[1723729660874,3.51170185,144.22,144.19,3.52007306]
[1723729661066,0.04490185,144.22,144.19,0.05277306]
[1723729661470,3.4671,144.21,144.19,0.05277306]
[1723729661673,0.04490185,144.22,144.19,0.05277306]
[1723729661970,3.4672,144.2,144.19,0.05277306]
[1723729662678,3.468,144.17,144.13,41.65]
[1723729662868,3.4696213,144.22,144.13,41.65]
[1723729663169,2.4972,144.24,144.15,41.65]
[1723729663369,2.4972,144.24,144.17,41.65]
[1723729663571,3.4671,144.21,144.18,3.4675]
[1723729663767,2.4972,144.24,144.17,41.65]
[1723729663970,0.04803498,144.22,144.19,0.04839314]
[1723729664268,0.04803498,144.22,144.2,3.4671]
[1723729665272,0.04803498,144.22,144.19,0.04839314]
[1723729665575,3.57334704,144.22,144.19,0.04839314]
[1723729665773,3.4672,144.2,144.19,0.04839314]
[1723729666171,3.4683,144.16,144.12,41.65]
[1723729666672,0.04803498,144.22,144.12,41.65]
[1723729666673,3.44764216,144.21,144.12,41.65]
[1723729666868,43.0115,144.23,144.14,3.4684]
[1723729667079,43.0115,144.23,144.12,41.65]
[1723729667573,43.0115,144.23,144.14,3.4684]
[1723729667779,0.0456894,144.2,144.17,0.05176322]
[1723729668074,3.49922615,144.2,144.17,0.05176322]
[1723729668275,3.4677,144.18,144.17,0.05176322]
[1723729669181,5.9256894,144.2,144.18,3.4675]
[1723729669377,5.9256894,144.2,144.17,0.05176322]
[1723729669573,0.0456894,144.2,144.17,0.05176322]
[1723729669775,0.0456894,144.2,144.18,3.4677]
[1723729670075,0.0456894,144.2,144.17,41.70176322]
[1723729670579,0.0456894,144.2,144.17,0.05176322]
[1723729671178,3.4677,144.18,144.17,0.05176322]
[1723729671384,0.0456894,144.2,144.17,0.05176322]
[1723729671873,3.4675,144.19,144.17,0.05176322]
[1723729672066,3.4675,144.19,144.17,3.51966322]
[1723729672270,0.0456894,144.2,144.17,3.51966322]
[1723729672271,3.5129894,144.2,144.17,0.05176322]
[1723729672680,0.0456894,144.2,144.17,3.51956322]
[1723729673073,3.4676,144.19,144.17,0.05176322]
[1723729673478,0.0456894,144.2,144.17,0.05176322]
[1723729673780,3.4677,144.18,144.17,0.05176322]
[1723729673979,0.0456894,144.2,144.17,0.05176322]
[1723729674578,0.0456894,144.2,144.18,3.4675]
[1723729675177,3.5128894,144.2,144.17,3.51956322]
[1723729675481,3.5128894,144.2,144.17,0.05176322]
[1723729676181,0.0456894,144.2,144.18,3.4677]
[1723729676681,3.5128894,144.2,144.17,3.51946322]
[1723729676873,3.5128894,144.2,144.17,0.05176322]
[1723729677272,0.0456894,144.2,144.18,3.4677]
[1723729677479,0.0456894,144.2,144.17,0.05176322]
[1723729678084,0.0456894,144.2,144.18,41.65]